Cogmind - Beta 17.1 @@@ ROGUE MODE // 2026.09.04 @ 23:37:32 Player: EN-G1N Result: Self-destructed Performance ------------- Evolutions (1) 500 Regions Visited (3) 600 Robots Destroyed (28) 140 Value Destroyed (864) 864 Prototype IDs (0) 0 Alien Tech Used (0) 0 Bonus (0) 0 TOTAL SCORE: 2104 Bonus ------- None Cogmind --------- Core Integrity 32/400 Matter 91/300 Energy 47/100 System Corruption 2% Temperature Cool (0) Movement Core (400) Ox7 Location -9/Storage Parts ------- > --- POWER (1) -------- (None) > --- PROPULSION (2) --- (None) > --- UTILITY (4) ------ Heat Sink Large Storage Unit Advanced Targeting Computer > --- WEAPON (2) ------- Small Laser Small Laser > --- INVENTORY (15) --- Nuclear Core Nuclear Core Visual Processing Unit Sensor Array Signal Interpreter Terrain Scanner Advanced Targeting Computer Advanced Targeting Computer Advanced Targeting Computer Small Laser Rocket Launcher Rocket Launcher Mining Laser Peak State ------------ > --- POWER ------------ Nuclear Core > --- PROPULSION ------- Improved Treads Improved Treads > --- UTILITY ---------- Improved Heat Sink Large Storage Unit Advanced Targeting Computer Improved Light Armor Plating > --- WEAPON ----------- Medium Laser Heavy Assault Rifle > --- INVENTORY -------- Nuclear Core Nuclear Core Nuclear Core Improved Treads Heat Sink Visual Processing Unit Sensor Array Signal Interpreter Terrain Scanner Advanced Targeting Computer Advanced Targeting Computer Advanced Targeting Computer Improved Light Armor Plating Small Laser Mining Laser [Rating: 23] Favorites ----------- Power Ion Engine Engine Ion Engine Power Core Nuclear Core Propulsion Light Treads Treads Light Treads Wheel Wheel Utility Large Storage Unit Device Heat Sink Storage Large Storage Unit Processor Advanced Targeting Computer Protection Improved Light Armor Plating Weapon Medium Laser Energy Gun Medium Laser Ballistic Gun Assault Rifle Launcher Rocket Launcher Special Weapon Mining Laser Build | -11 -10 -9 -9 ------- Run | Yrd Mat Mat Sto Slots Evolved 2 | . . 2 . Power . | . . . . Propulsion . | . . . . Utility 2 | . . 2 . Weapon . | . . . . Parts Attached 28 | 6 3 7 12 Power 3 | 1 . 1 1 Engine 1 | 1 . . . Core 2 | . . 1 1 Reactor . | . . . . Propulsion 8 | 2 . 2 4 Treads 5 | 2 . . 3 Leg . | . . . . Wheel 3 | . . 2 1 Hover . | . . . . Flight . | . . . . Utility 9 | 1 2 3 3 Device 4 | . 1 1 2 Storage 2 | 1 1 . . Processor 1 | . . 1 . Hackware . | . . . . Protection 2 | . . 1 1 Artifact . | . . . . Weapon 8 | 2 1 1 4 Energy Gun 4 | 1 . . 3 Energy Cannon . | . . . . Ballistic Gun 2 | 1 . 1 . Ballistic Cannon . | . . . . Launcher 1 | . . . 1 Special Weapon 1 | . 1 . . Impact Weapon . | . . . . Slashing Weapon . | . . . . Piercing Weapon . | . . . . Special Melee Weapon . | . . . . Unidentified Prototypes . | . . . . Parts Lost 13 | . . . 13 Power 2 | . . . 2 Propulsion 4 | . . . 4 Utility 3 | . . . 3 Weapon 4 | . . . 4 Highest Loss Streak 5 | . . . 5 To Critical Strikes . | . . . . Average Backups 12 | 3 11 14 14 Power 1 | . 1 2 2 Propulsion 2 | 2 3 1 . Utility 6 | . 4 8 8 Weapon 1 | 1 1 1 1 Tool/Special . | . . . . Unused Backups 19 | . 1 7 11 Power 3 | . . 1 2 Propulsion 3 | . 1 2 . Utility 9 | . . 2 7 Weapon 3 | . . 1 2 Tool/Special 1 | . . 1 . Average Slot Usage (%) 91 | . 96 91 78 Engine 7 | . 14 2 . Core 4 | . . 8 9 Treads 22 | . 28 18 14 Wheel 1 | . . 2 1 Device 10 | . 10 13 7 Storage 12 | . 14 11 11 Processor 5 | . . 9 11 Protection 2 | . . 2 7 Energy Gun 11 | . 14 11 6 Ballistic Gun 11 | . 13 10 5 Peak Build Rating 23 | 6 8 19 23 Average Rating 11 | 3 7 15 17 On Entrance 8 | . 6 8 19 Avg Prop Armor Cover (%) 9 | . . 9 . Naked Turns . | . . . . Heaviest Build 36 | 14 30 36 36 Greatest Support 46 | 40 40 40 46 Greatest Overweight (x) 11 | 3 . 10 11 Average Overweight (x) . | . . . . Largest Inventory Capacity 15 | 8 15 15 15 Average Capacity 14 | 7 13 15 15 Most Carried 15 | 8 15 15 15 Average Carried 12 | 4 11 14 14 Final Capacity 15 | 8 15 15 15 Final Carried 15 | 6 15 15 13 Class Distribution -------------------- 100% | Mutant Dominant Class ---------------- Mutant | -10/Materials Mutant | -9/Materials Mutant | -9/Storage Resources | -11 -10 -9 -9 ----------- Run | Yrd Mat Mat Sto Matter Collected 624 | 192 25 238 169 Remotely . | . . . . Salvage Created 999 | . 163 296 540 Parts 63 | . 11 18 34 Haulers Intercepted 1 | . 1 . . Recyclers Shooed 1 | . . . 1 Parts Field Recycled . | . . . . Retrieved Matter . | . . . . Parts Self-Destructed . | . . . . Prevented . | . . . . Parts Restored . | . . . . Kills | -11 -10 -9 -9 ------- Run | Yrd Mat Mat Sto Combat Hostiles Destroyed 19 | . 2 6 11 Guns 13 | . 2 6 5 AOE 6 | . . . 6 Classes Destroyed 7 | . 3 2 2 Builder 2 | . . . 2 Hauler 1 | . 1 . . Recycler 1 | . . . 1 Watcher 5 | . 2 1 2 Grunt 15 | . 2 4 9 Duelist 2 | . . 1 1 Sentry 2 | . . 1 1 Best Kill Streak 6 | . 2 3 6 Combat Bots Only 6 | . 2 3 6 Max Kills in Single Turn 2 | . 1 1 2 Gunslinging . | . . . . Exploded 2 | . . . 2 Melee . | . . . . Uniques/NPCs Destroyed . | . . . . Combat | -11 -10 -9 -9 -------- Run | Yrd Mat Mat Sto Hostile Shots Fired 200 | . 6 26 168 Missed 69 | . 3 10 56 Hits 131 | . 3 16 112 Melee 5 | . . . 5 Projectile 126 | . 3 16 107 Critical Strikes 3 | . . . 3 Damage Taken 1920 | . 39 205 1676 Core 368 | . . 21 347 Absorbed by Shields . | . . . . Core Remaining (%) 100 | 100 100 . . Volleys Fired 70 | . 15 25 30 Largest 2 | . 2 2 2 Hottest 100 | . 100 73 80 Shots Fired 129 | . 27 50 52 Gun 118 | . 24 50 44 Cannon . | . . . . Launcher 8 | . . . 8 Special 3 | . 3 . . Kinetic 57 | . 12 25 20 Thermal 64 | . 15 25 24 Explosive 8 | . . . 8 Electromagnetic . | . . . . Robot Hit Streak 49 | . 8 36 49 Robot Miss Streak 2 | . 2 2 1 Penetration Max . | . . . . Secondary Targets . | . . . . Shots Hit Robots 101 | . 17 40 44 Core Hits 52 | . 9 14 29 Critical Kills . | . . . . Critical Parts Destroyed . | . . . . Critical Strikes 6 | . 2 2 2 Burn 6 | . 2 2 2 Melee Attacks . | . . . . Impact . | . . . . Slashing . | . . . . Piercing . | . . . . Sneak Attacks . | . . . . Combat Hostiles . | . . . . Follow-up Attacks . | . . . . Damage Inflicted 2108 | . 235 555 1318 Guns 1309 | . 235 555 519 Cannons . | . . . . Explosions 799 | . . . 799 Melee . | . . . . Ramming . | . . . . Kinetic 686 | . 134 278 274 Thermal 623 | . 101 277 245 Explosive 799 | . . . 799 Electromagnetic . | . . . . Impact . | . . . . Slashing . | . . . . Piercing . | . . . . Highest Corruption 2 | . . . 2 Average Corruption 2 | . . . 2 Corruption Purged . | . . . . Corruption Blocked . | . . . . Effects 4 | . . . 4 Matter Fused 1 | . . . 1 Energy Discharges 2 | . . . 2 Alerts 1 | . . . 1 Overload Shots . | . . . . Overflow Damage . | . . . . Projectiles . | . . . . Explosions . | . . . . Melee . | . . . . Knockbacks . | . . . . Impact . | . . . . Kinetic . | . . . . Secondary . | . . . . Self-Inflicted Damage 84 | . . . 84 Shots 3 | . . . 3 Rammed . | . . . . Targets Rammed . | . . . . Kicked . | . . . . Crushed . | . . . . Highest Temperature 15 | . 2 2 15 Average Temperature 3 | . 2 1 3 Received Heat Transfer 669 | . 24 99 546 Siege Activations . | . . . . Martial Activations . | . . . . Shielding Activations . | . . . . Robots Disrupted . | . . . . Combat Hostiles . | . . . . Robots Corrupted . | . . . . Combat Hostiles . | . . . . Parts Fried . | . . . . Impact Corruptions . | . . . . Robots Melted . | . . . . Combat Hostiles . | . . . . Parts Melted 4 | . 1 2 1 Heat Transferred 2162 | . 444 962 756 Parts Sabotaged . | . . . . Parts Stolen . | . . . . Parts Stripped . | . . . . Power Chain Reactions . | . . . . Alert | -11 -10 -9 -9 ------- Run | Yrd Mat Mat Sto Maximum Alert Level 1 | . . . 1 Low Security (%) 99 | 100 100 100 98 Level 1 . | . . . 1 Level 2 . | . . . . Level 3 . | . . . . Level 4 . | . . . . Level 5 . | . . . . High Security . | . . . . Max Security . | . . . . Peak Influence 207 | . 44 91 207 Initial 8 | . . 8 4 Average 24 | . 4 30 66 Influence Increases 707 | . 98 187 422 Destroy 0b10 Robot/C 380 | . 40 120 220 Destroy 0b10 Robot/NC 45 | . 15 5 25 Destroy Leader 102 | . 16 32 54 Successful Hack 48 | . 12 29 7 Disable Machine 30 | . 15 . 15 Destroy Structure 72 | . . 1 71 Partial Spotted 15 | . . . 15 Lose Combat Pursuer 15 | . . . 15 Influence Decreases 530 | . 78 195 257 Entered New Map 20 | . . 12 8 Time Decay 420 | . 78 183 159 Lost Part 90 | . . . 90 Squads Dispatched 6 | . . 1 5 Investigation 2 | . . . 2 Extermination . | . . . . Reinforcement 2 | . . 1 1 Assault . | . . . . Garrison 2 | . . . 2 Intercept . | . . . . Searches Triggered . | . . . . Construction Impeded . | . . . . Haulers Reinforced . | . . . . Active Scanning Responses . | . . . . Cargo Convoy Interrupts . | . . . . Stealth | -11 -10 -9 -9 --------- Run | Yrd Mat Mat Sto Distress Signals 3 | . . 2 1 Communications Jammed . | . . . . Distress Signals . | . . . . Times Spotted 35 | . 9 9 17 Peak Tracking Total 5 | . 2 3 5 Tactical Retreats 1 | . . . 1 Traps | -11 -10 -9 -9 ------- Run | Yrd Mat Mat Sto Traps Triggered 5 | . . 3 2 Indirectly . | . . . . Trap Hack Attempts . | . . . . Triggered . | . . . . Disarmed . | . . . . Reprogrammed . | . . . . Reused . | . . . . Traps Extracted . | . . . . Installed . | . . . . Triggered . | . . . . Machines | -11 -10 -9 -9 ---------- Run | Yrd Mat Mat Sto Machines Disabled 2 | . 1 . 1 Max in Single Turn 1 | . 1 . 1 Machines Repaired . | . . . . Machines Dismantled . | . . . . Machines Sabotaged . | . . . . Overloaded Fab Kills . | . . . . Hacking | -11 -10 -9 -9 --------- Run | Yrd Mat Mat Sto Machines Accessed 5 | . 2 2 1 Terminals 4 | . 2 1 1 Fabricators . | . . . . Repair Stations . | . . . . Recycling Units . | . . . . Scanalyzers 1 | . . 1 . Garrison Access . | . . . . Total Hacks 11 | . 5 4 2 Successful 7 | . 3 3 1 Failed 4 | . 2 1 1 Catastrophic 2 | . . 1 1 Database Lockouts . | . . . . Manual 8 | . 6 2 . Terminals 9 | . 5 2 2 Fabricators . | . . . . Repair Stations . | . . . . Recycling Units . | . . . . Scanalyzers 2 | . . 2 . Garrison Access . | . . . . Terminal Hacks 3 | . 2 . 1 Robot Analysis 2 | . 2 . . Open Door 1 | . . . 1 Fabricator Hacks . | . . . . Repair Station Hacks . | . . . . Recycling Unit Hacks . | . . . . Scanalyzer 2 | . . 2 . Retrieve Study 2 | . . 2 . Garrison Access Hacks . | . . . . Unauthorized Hacks 2 | . 1 1 . Terminals 2 | . 1 1 . Botnet 2 | . 1 1 . Fabricators . | . . . . Repair Stations . | . . . . Recycling Units . | . . . . Scanalyzers . | . . . . Garrison Access . | . . . . Data Cores Recovered . | . . . . Used . | . . . . Hacking Detections 5 | . 2 2 1 Full Trace Events 1 | . . . 1 Feedback Events . | . . . . Feedback Blocked . | . . . . Robot Schematics Acquired . | . . . . Robots Built . | . . . . Authchips . | . . . . Time . | . . . . Total Robot Build Rating . | . . . . Part Schematics Acquired . | . . . . Parts Built . | . . . . Authchips . | . . . . Time . | . . . . Total Part Build Rating . | . . . . Part Studies Acquired 2 | . . 2 . Parts Repaired . | . . . . Time . | . . . . Parts Recycled . | . . . . Recycled Matter . | . . . . Retrieved Matter . | . . . . Retrieved Components . | . . . . Parts Scanalyzed . | . . . . Part Schematics Acquired . | . . . . Parts Damaged . | . . . . Bothacking | -11 -10 -9 -9 ------------ Run | Yrd Mat Mat Sto Used RIF Installer . | . . . . Robots Hacked . | . . . . Non-combat . | . . . . Combat . | . . . . Robot Hacks Applied . | . . . . Relay Couplers Released . | . . . . Fabnet Peak Effective % . | . . . . Robots Rewired . | . . . . Allies Hacked . | . . . . Hacks Repelled . | . . . . Allies | -11 -10 -9 -9 -------- Run | Yrd Mat Mat Sto Total Allies . | . . . . Largest Group . | . . . . Highest-Rated Group . | . . . . Highest-Rated Ally . | . . . . Total Orders . | . . . . Ally Attacks . | . . . . Total Damage . | . . . . Kills . | . . . . Allies Corrupted . | . . . . Allies Melted . | . . . . Intel | -11 -10 -9 -9 ------- Run | Yrd Mat Mat Sto Active Infowar (turns) . | . . . . Robot Analysis Total 2 | . 2 . . Derelict Logs Recovered . | . . . . Drone Launches . | . . . . Drone Recoveries . | . . . . Exploration | -11 -10 -9 -9 ------------- Run | Yrd Mat Mat Sto Turns Passed 1963 | 81 935 552 395 Spaces Moved 964 | 44 496 292 132 Core 19 | 14 . 2 3 Treads 828 | 30 496 202 100 Legs . | . . . . Wheels 117 | . . 88 29 Hover . | . . . . Flight . | . . . . Fastest Speed 50 | 50 160 95 95 Average Speed 156 | 145 160 146 167 Slowest Speed 600 | 200 160 550 600 Overloaded Moves . | . . . . Propulsion Burnouts . | . . . . Robots Hopped . | . . . . Potential Cave-ins . | . . . . Cave-ins Triggered . | . . . . Exploration Rate (%) 31 | 4 70 28 25 Regions Visited 3 Branch Regions 1 Pre-discovered Areas . | . . . . Known Exits Taken . | . . . . Unknown Exits Taken 3 | 1 1 1 . Scrap Searched . | . . . . Spaces Dug . | . . . . Terrain Destroyed 69 | . . . 69 Melee . | . . . . Projectile . | . . . . AOE 69 | . . . 69 Terrain Rammed . | . . . . Walls Destroyed . | . . . . Machines Disabled . | . . . . Actions | -11 -10 -9 -9 --------- Run | Yrd Mat Mat Sto Total 1286 | 61 604 365 256 Wait 143 | . 75 7 61 Move 961 | 43 495 291 132 Hop . | . . . . Pick Up 50 | 12 11 14 13 Fast Attach 8 | . 1 7 . Attach 24 | 6 1 3 14 Detach 1 | . 1 . . Swap 11 | . 3 6 2 Drop 18 | . 2 12 4 Fire 70 | . 15 25 30 Melee . | . . . . Ram . | . . . . Kick . | . . . . Crush . | . . . . Escape Stasis . | . . . . Rewire . | . . . . Trap . | . . . . Miscellaneous . | . . . . Route ------- -11/Scrapyard -10/Materials (discovered 2 exits: *Mat / [*Min]) -9/Materials -9/Storage History --------- Turn | Location | Event 15 | -11/Scrapyard | Discovered new exit (range 16) 82 | -11/Scrapyard | Entered Materials 306 | -10/Materials | Build established: Mutant 806 | -10/Materials | Discovered new exit (range 11) 943 | -10/Materials | Discovered new exit (range 14) 1017 | -10/Materials | Entered another Materials area 1017 | -9/Materials | Evolved 2 slots: Utility x2 1559 | -9/Materials | Discovered new exit (range 8) 1569 | -9/Materials | Entered Storage 1767 | -9/Storage | Garrison activated, responded to threat 1878 | -9/Storage | Lost 5 parts (1p2n2u) 1931 | -9/Storage | Core integrity fell below 50% 1964 | -9/Storage | Core integrity fell below 20% 1964 | -9/Storage | Self-destructed Last Messages --------------- 01930_ Acquired Wheel. 01931_ U-05 Engineer lays Concrete. 01932_ U-05 Engineer builds a Wall. 01932_ U-05 Engineer lays Concrete. 01934_ The unstable cave ceiling collapses. 01934_ Aluminum Leg crushed. 01934_ U-05 Engineer builds a Wall. 01935_ K-01 Serf cleans the Repair Station. 01935_ Rocket Launcher destroyed. 01938_ K-01 Serf cleans the Repair Station. 01938_ U-05 Engineer builds a Wall. 01942_ Acquired Sml. Laser. 01943_ K-01 Serf cleans the Repair Station. 01944_ Acquired Sml. Laser. 01950_ K-01 Serf collects debris. 01955_ System corrupted: Energy discharge (-6). 01956_ Acquired Sml. Laser. 01958_ The unstable cave ceiling collapses. 01960_ Wheel destroyed. 01962_ U-05 Engineer builds a Wall. Map ----- +----------------------------------------------------+ | ??????????????????????????????????????????? | | ??????????????????????????????????????????? | | ??????????????????????????????????????????? | | ??????????????????????????????????????????? | | ??????????????????????????????????????????? | | ??????????????????????????????????????????? | | ??????????????????????????????????????????? | | ??????????????????????????????????????????? | | ??????????????????????????????????????????? | | ??????????????????????????????????????????? | | ??????????????????????????????????????????? | | ??????????????????????????????????????????? | | ??????????????????????????????????????????? | | ??????????????????????????????????????????? | | ??????????????????????????????????????????? | | ??????????????????????????????????????????? | | ???????????????????????????? ?????????????? | | ??????????????????????????? ???????????? | | ??????????????????????????? ???????????? | | ??????????????????????????? ???????????? | | ?????????????????######???# #?####??????? | | ?????????????????# """#???# # ???????? | | ?????????????????#""R"#???# # ???????? | | ???????????????###"" "##### # ""???????? | | ????????????????+ + / """??????? | | ????????????????#Y@ # % """ #???? | | ????????????????# = """ #???? | | ????????????????# YY """ #???? | | ????????????????# "" ! # #???? | | ????????????????# Y"# # #???? | | ???? ???????????# "" #???? | | ???? ??????????# Y #???? | | ????? ##+?????## ####### #######????? | | ????? ??????###???### | """"????? | | ????? ????????????#T## !! """"????? | | ????? ?????????????" # *%# """"" #?? | | ?????? ?????????????" #?? | | ?????? ?????????????" = #?? | | ?????? ??????????????### #?? | | ###???# ????????????????# #? | | #! ??# #????????????##### ##? | | # ??# #???????????## # ##" "#+###?? | | # = ## ##??????????# ! # #?"Y"#?#???? | | # %# ############ ]] !# #??""#?????? | | # !+ " / # ]]]%+= ##??????????? | | # =# ## # =#%= ##??????????? | | # ###### # #% # #?????????? | | # ??????# """"# ###?????????? | | # ??????# """" ##??????????? | | ###???????# """" #??????????? | +----------------------------------------------------+ Best States ------------- Heat Dissipation 48 Energy Generation 16 Energy Capacity 250 Matter Stores 300 Matter Capacity 300 Sight Range 16 Terrain Scan Density 10 Armor Coverage 150 Evasion (%) 41 Targeting Accuracy 8 Recoil Reduction 2 Item Schematics ----------------- None Robot Schematics ------------------ None Fabricated ------------ Nothing Repaired ---------- Nothing Studied --------- Med. Laser | -9/Materials | Hacked Nuclear Core | -9/Materials | Hacked Alien Tech Used ----------------- None Achievements -------------- None Challenges ------------ None Game ------ Seed ClaymoresFactoryJammer Manual? 0 Play Time 00:23:57 Cumulative 62.2 hours Start 2026.09.04 @ 23:15:27 End 2026.09.04 @ 23:37:32 Sessions 1 Manual Loads 0 Difficulty Rogue Special Mode None Game No. 68 Rogue 13 Adventurer 55 Explorer 0 Win Type - Total 1 Types 1/0/0/0/0/0/0/0/0/0 Lore% 33 Gallery% 35 Achievement% 26 Wizard Run 0 Options --------- Layout 1 ASCII 0 Keyboard 0 Movement Mouse Keybinds 0 Fullscreen 2 Font 24/Smallcaps Map View 50x35 Zoom Use 0% Tactical HUD 1 Map Filters NONE Filters NONE Steam 1 RUN: 7782f4f2-7a74-488f-a6fe-2365885c1f73